bitfinex/quotes_BTCUSD_20250822
["timestamp","ask_amount","ask_price","bid_price","bid_amount"]
[1755821999232,0.15256,113010.0,113000.0,0.0368088]
[1755821999417,0.15256,113010.0,113000.0,0.0389188]
[1755822000410,0.15256,113010.0,113000.0,0.04113118]
[1755822000646,0.15256,113010.0,113000.0,0.0389188]
[1755822001514,0.15256,113010.0,113000.0,0.07253689]
[1755822002715,0.15256,113010.0,113000.0,0.0389188]
[1755822005864,0.1526,113010.0,113000.0,0.0389188]
[1755822006067,0.16088537,113010.0,113000.0,0.0389188]
[1755822006675,0.01028537,113010.0,113000.0,0.0389188]
[1755822008044,0.01028537,113010.0,113000.0,0.0122968]
[1755822008942,0.01028537,113010.0,113000.0,0.48886175]
[1755822009159,0.002,113010.0,113000.0,0.48886175]
[1755822009821,0.001,113010.0,113000.0,0.48886175]
[1755822010235,0.15074491,113030.0,113020.0,0.0070968]
[1755822010448,0.15903538,113030.0,113020.0,0.0070968]
[1755822010665,0.15903538,113030.0,113020.0,0.0101868]
[1755822012457,0.15903538,113030.0,113020.0,0.0090968]
[1755822013127,0.1590333,113030.0,113020.0,0.0090968]
[1755822013330,0.1590333,113030.0,113020.0,0.0100968]
[1755822013537,0.0084333,113030.0,113020.0,0.0100968]
[1755822013765,0.1590733,113030.0,113020.0,0.0080968]
[1755822014388,0.1590733,113030.0,113020.0,0.001]
[1755822014801,0.1590733,113030.0,113010.0,0.2667]
[1755822016141,0.1590733,113030.0,113020.0,0.0070968]
[1755822017206,0.15907402,113030.0,113020.0,0.0070968]
[1755822017629,0.17565401,113030.0,113020.0,0.0070968]
[1755822018438,0.17557401,113030.0,113020.0,0.0070968]
[1755822018615,0.15899402,113030.0,113020.0,0.0070968]
[1755822018759,0.15899402,113030.0,113020.0,0.0102068]
[1755822019166,0.15070491,113030.0,113020.0,0.0102068]
[1755822019445,0.17558322,113030.0,113020.0,0.0102068]
[1755822019801,0.17558349,113030.0,113020.0,0.0102068]
[1755822021407,0.17558349,113030.0,113020.0,0.0070968]
[1755822021796,0.17558349,113030.0,113020.0,0.0121768]
[1755822023858,0.02502349,113030.0,113020.0,0.0121768]
[1755822024067,0.17546349,113030.0,113020.0,0.0121768]
[1755822024471,0.17547271,113030.0,113020.0,0.0121768]
[1755822026440,0.19459316,113030.0,113020.0,0.0121768]
[1755822026828,0.04415316,113030.0,113020.0,0.0121768]
[1755822027044,0.00843768,113030.0,113020.0,0.0121768]
[1755822027775,0.50843768,113030.0,113020.0,0.0121768]
[1755822028669,0.50014491,113030.0,113020.0,0.0121768]
[1755822028885,0.5084473,113030.0,113020.0,0.0121768]
[1755822029295,0.52505599,113030.0,113020.0,0.0121768]
[1755822029950,0.02505599,113030.0,113020.0,0.0121768]
[1755822030379,0.0084473,113030.0,113020.0,0.0121768]
[1755822031867,0.0084473,113030.0,113020.0,0.0429473]
[1755822033253,0.0084473,113030.0,113020.0,0.04515929]
[1755822033469,0.0084473,113030.0,113020.0,0.0429473]
[1755822034313,0.0084473,113030.0,113020.0,0.04515929]
[1755822034951,0.00845049,113030.0,113020.0,0.04515929]
[1755822035120,0.00845049,113030.0,113020.0,0.11559733]
[1755822036718,0.00845049,113030.0,113020.0,0.11780932]
[1755822036921,0.00845049,113030.0,113020.0,0.13525834]
[1755822037146,0.00845049,113030.0,113020.0,0.13304635]
[1755822038048,0.00014491,113030.0,113020.0,0.13604635]
[1755822038404,0.00014491,113030.0,113020.0,0.13304635]
[1755822038834,0.00014491,113030.0,113020.0,0.14004635]
[1755822040648,0.00014491,113030.0,113020.0,0.40674635]
[1755822040858,0.00014491,113030.0,113020.0,0.40453436]
[1755822041289,0.00014491,113030.0,113020.0,0.43114536]
[1755822041971,0.000519,113030.0,113020.0,0.43114536]
[1755822042184,0.01436855,113030.0,113020.0,0.43114536]
[1755822044861,0.01436855,113030.0,113020.0,0.50444536]
[1755822052231,0.01436855,113030.0,113020.0,0.77114536]
[1755822055961,0.01436855,113030.0,113020.0,0.92146536]
[1755822056504,0.01384955,113030.0,113020.0,0.92146536]
[1755822057849,0.01384955,113030.0,113020.0,1.09842519]
[1755822058251,0.01384955,113030.0,113020.0,1.09826346]
[1755822059264,0.01384955,113030.0,113020.0,1.09790619]
[1755822060116,0.01384955,113030.0,113020.0,0.92094636]
[1755822064797,0.01384955,113030.0,113020.0,0.77062636]
[1755822065057,0.01384955,113030.0,113020.0,0.92090636]
[1755822066429,0.01384955,113030.0,113020.0,0.77062636]
[1755822066670,0.01384955,113030.0,113020.0,0.89013586]
[1755822079418,0.01384955,113030.0,113020.0,0.89017586]
[1755822081105,0.01384955,113030.0,113020.0,0.88820586]
[1755822081540,0.01384955,113030.0,113020.0,0.89020586]
[1755822084627,0.01384955,113030.0,113020.0,0.88513586]
[1755822085527,0.01384955,113030.0,113020.0,0.71732684]
[1755822085752,0.01384955,113030.0,113020.0,0.86776684]
[1755822086594,0.5,113050.0,113020.0,0.86776684]
[1755822086800,0.5,113050.0,113030.0,0.15044]
[1755822086801,4.79644714,113050.0,113030.0,0.15044]
[1755822087012,0.0442095,113050.0,113020.0,0.92798549]
[1755822087192,0.05805834,113050.0,113030.0,0.1504]
[1755822087421,0.05805834,113050.0,113040.0,0.0065778]
[1755822088835,0.05805834,113050.0,113030.0,0.026613]
[1755822089040,0.0442095,113050.0,113030.0,0.026613]
[1755822089261,0.0442095,113050.0,113020.0,0.41043804]
[1755822089473,0.5442095,113050.0,113020.0,0.43705304]
[1755822089736,4.787656,113040.0,113020.0,0.43705304]
[1755822089930,4.79596395,113040.0,113020.0,0.43705304]
[1755822090112,0.00830795,113040.0,113020.0,0.43705304]
[1755822090315,0.00830795,113040.0,113030.0,0.0065778]
[1755822090535,0.00830795,113040.0,113020.0,0.43705304]
[1755822091307,0.00830795,113040.0,113030.0,0.0065778]
[1755822092151,0.03590155,113050.0,113030.0,0.0065778]
[1755822092514,5.287656,113040.0,113030.0,0.0065778]
[1755822092714,4.787656,113040.0,113030.0,0.0065778]
[1755822093141,4.787656,113040.0,113030.0,0.0075778]
[1755822093359,4.787656,113040.0,113030.0,0.0095778]
[1755822093863,4.7959558,113040.0,113030.0,0.0095778]
[1755822094060,0.04975055,113050.0,113040.0,0.0065778]
[1755822094289,4.86230589,113050.0,113040.0,0.0065778]
[1755822095135,4.83740655,113050.0,113040.0,0.0065778]
[1755822095346,4.86230421,113050.0,113040.0,0.0065778]
[1755822098603,4.86230421,113050.0,113020.0,0.026615]
[1755822098815,4.938096,113040.0,113020.0,0.0065778]
[1755822099043,4.787656,113030.0,113000.0,0.12210593]
[1755822099249,0.15052,113020.0,113000.0,0.07828589]
[1755822099470,0.15052,113020.0,113000.0,0.369608]
[1755822099680,0.15052,113020.0,113000.0,0.026618]
[1755822099884,0.15052,113020.0,112990.0,0.00299]
[1755822100089,0.65881681,113020.0,113010.0,0.0065778]
[1755822100295,5.44647281,113020.0,113010.0,0.0065778]
[1755822100567,0.15052,113020.0,113010.0,0.0065778]
[1755822101001,0.15052,113020.0,113000.0,0.004]
[1755822101609,4.787656,113010.0,113000.0,0.007]
[1755822101812,4.787656,113010.0,113000.0,0.003]
[1755822102024,4.787656,113010.0,113000.0,0.0065778]
[1755822102443,4.80150903,113010.0,113000.0,0.0075778]
[1755822102651,0.01385303,113010.0,113000.0,0.0095778]
[1755822102862,0.5139812,113010.0,113000.0,0.0085778]
[1755822103077,5.3016372,113010.0,113000.0,0.0085778]
[1755822103279,0.0139812,113010.0,113000.0,0.0105778]
[1755822103498,0.5139812,113010.0,113000.0,0.0105778]
[1755822103714,5.3016372,113010.0,113000.0,0.0105778]
[1755822103920,0.0139812,113010.0,113000.0,0.0105778]
[1755822104125,0.5139812,113010.0,113000.0,0.0105778]
[1755822104343,5.3016372,113010.0,113000.0,0.0085778]
[1755822104552,0.0139812,113010.0,113000.0,0.0085778]
[1755822104735,0.5139812,113010.0,113000.0,0.0085778]
[1755822104898,0.5139812,113010.0,113000.0,0.0095778]
[1755822104899,5.3016372,113010.0,113000.0,0.0095778]
[1755822105304,0.0139812,113010.0,113000.0,0.0095778]
[1755822105506,0.5139812,113010.0,113000.0,0.0095778]
[1755822105706,5.3016372,113010.0,113000.0,0.0095778]
[1755822106284,0.0139812,113010.0,113000.0,0.0095778]
[1755822106501,5.3016372,113010.0,113000.0,0.0145678]
[1755822106736,0.1644612,113010.0,113000.0,0.0145678]
[1755822107167,0.0139812,113010.0,113000.0,0.0145678]
[1755822107373,0.1644212,113010.0,113000.0,0.0145678]
[1755822107800,0.1644612,113010.0,113000.0,0.0145678]
[1755822114440,0.17273814,113010.0,113000.0,0.0145678]
[1755822115223,0.18929209,113010.0,113000.0,0.0145678]
[1755822115435,0.18929209,113010.0,113000.0,0.01381427]
[1755822116334,0.69138209,113010.0,112990.0,0.01892387]
[1755822116545,0.69138209,113010.0,112990.0,0.00149348]
[1755822117015,0.6913859,113010.0,112990.0,0.00149348]
[1755822117251,0.6913859,113010.0,112980.0,0.24661367]
[1755822117494,0.6913859,113010.0,112990.0,0.001]
[1755822117495,0.6943759,113010.0,112990.0,0.001]
[1755822118147,0.6943759,113010.0,112980.0,0.31368674]
[1755822118361,0.6943759,113010.0,112990.0,0.00296]
[1755822118580,0.5216369,113010.0,112990.0,0.00396]
[1755822118799,0.53549047,113010.0,112990.0,0.00396]
[1755822119222,0.5216369,113010.0,112990.0,0.00396]
[1755822119428,0.5216369,113010.0,112990.0,0.00617258]
[1755822119890,0.15149186,113000.0,112990.0,0.00617258]
[1755822120115,0.15149186,113000.0,112990.0,0.00607]
[1755822121440,0.15358186,113000.0,112990.0,0.00607]
[1755822121662,0.15358186,113000.0,112990.0,0.00807]
[1755822122095,0.15657186,113000.0,112990.0,0.003]
[1755822122336,0.16743545,113000.0,112990.0,0.00511]
[1755822122840,0.16743545,113000.0,112990.0,0.003]
[1755822122841,0.17042545,113000.0,112990.0,0.003]
[1755822124655,0.17042545,113000.0,112990.0,0.002]
[1755822124873,0.17042545,113000.0,112980.0,0.029582]
[1755822125115,0.01893359,113000.0,112990.0,0.001]
[1755822125343,0.16730359,113000.0,112990.0,0.00311]
[1755822126219,0.17029359,113000.0,112990.0,0.00394797]
[1755822126461,0.1868859,113000.0,112990.0,0.00394797]
[1755822127147,0.1868859,113000.0,112990.0,0.00321814]
[1755822129409,0.1868859,113000.0,112990.0,0.02773014]
[1755822129618,0.21227302,113000.0,112990.0,0.02773014]
[1755822130030,0.21227302,113000.0,112990.0,0.00110814]
[1755822130786,0.2205872,113000.0,112990.0,0.00110814]
[1755822131386,0.22062288,113000.0,112990.0,0.00110814]
[1755822131603,0.28874288,113000.0,112990.0,0.00110814]
[1755822131800,0.26865449,113000.0,112990.0,0.00110814]
[1755822131998,5.06254675,113000.0,112990.0,0.00110814]
[1755822132199,5.0837096,113000.0,112990.0,0.00110814]
[1755822132401,5.60912292,113000.0,112990.0,0.00110814]
[1755822132611,5.60912292,113000.0,112990.0,0.00010814]
[1755822133013,5.45876292,113000.0,112960.0,0.02663]
[1755822133213,4.941886,112990.0,112970.0,0.00296]
[1755822133402,0.15329,112980.0,112970.0,0.00211]
[1755822133606,0.03326836,112980.0,112970.0,0.00211]
[1755822133965,0.18470836,112980.0,112970.0,0.00211]
[1755822134183,0.18769836,112980.0,112970.0,0.00211]
[1755822134329,0.18769836,112980.0,112960.0,0.02959]
[1755822134541,0.18769836,112980.0,112960.0,0.06876217]
[1755822134742,0.05011492,112980.0,112970.0,0.00211]
[1755822134981,0.20151492,112980.0,112970.0,0.00211]
[1755822135384,0.69228866,112980.0,112970.0,0.00211]
[1755822135744,0.69228866,112980.0,112970.0,0.00311]
[1755822137635,0.69523321,112980.0,112970.0,0.001]
[1755822138931,0.68137665,112980.0,112970.0,0.001]
[1755822139158,0.68759751,112980.0,112970.0,0.001]
[1755822139568,5.49436178,112980.0,112970.0,0.001]
[1755822140226,5.49436178,112980.0,112940.0,0.026633]
[1755822140433,4.858756,112970.0,112940.0,0.026633]
[1755822140653,0.00216,112950.0,112940.0,0.026633]
[1755822140869,0.00514,112950.0,112940.0,0.026633]
[1755822141772,0.00514,112950.0,112940.0,0.02677791]
[1755822141984,0.00514,112950.0,112940.0,0.02877791]
[1755822142215,0.00216,112950.0,112940.0,0.03384791]
[1755822142430,0.01601854,112950.0,112940.0,0.03384791]
[1755822142814,0.55247481,112950.0,112940.0,0.03384791]
[1755822143039,0.51601854,112950.0,112940.0,0.03384791]
[1755822143258,0.66749854,112950.0,112940.0,0.03584791]
[1755822143466,0.66749854,112950.0,112940.0,0.03077791]
[1755822143670,0.16749854,112950.0,112940.0,0.03077791]
[1755822144311,0.16749854,112950.0,112940.0,0.03584791]
[1755822144844,0.16749854,112950.0,112940.0,0.03077791]
[1755822145051,0.16940854,112950.0,112940.0,0.03077791]
[1755822146196,0.16940854,112950.0,112940.0,0.02877791]
[1755822146668,0.16940854,112950.0,112940.0,0.02977791]
[1755822147076,0.16940854,112950.0,112940.0,0.02877791]
[1755822147477,0.16940854,112950.0,112940.0,0.02777791]
[1755822147696,0.20605744,112950.0,112940.0,0.02877791]
[1755822148113,0.20414744,112950.0,112940.0,0.02777791]
[1755822148325,0.70414744,112950.0,112940.0,0.02877791]
[1755822148545,5.49180344,112950.0,112940.0,0.02877791]
[1755822148768,0.20414744,112950.0,112940.0,0.02877791]
[1755822148986,0.70414744,112950.0,112940.0,0.02877791]
[1755822149198,5.49180344,112950.0,112940.0,0.02877791]
[1755822149412,0.20414744,112950.0,112940.0,0.02877791]
[1755822149628,0.70414744,112950.0,112940.0,0.02877791]
[1755822149839,5.49180344,112950.0,112940.0,0.02877791]
[1755822150053,0.20414744,112950.0,112940.0,0.02877791]
[1755822150288,0.70414744,112950.0,112940.0,0.03384791]
[1755822150501,0.20414744,112950.0,112940.0,0.03384791]
[1755822150717,0.20182744,112950.0,112940.0,0.03384791]
[1755822151385,0.0366489,112950.0,112940.0,0.03384791]
[1755822151651,0.1879689,112950.0,112940.0,0.03384791]
[1755822151863,0.15132,112960.0,112940.0,0.03384791]
[1755822152078,0.15144,112950.0,112940.0,0.03078791]
[1755822152294,0.56812,112970.0,112940.0,0.03078791]
[1755822152503,0.10447375,112970.0,112940.0,0.03078791]
[1755822152711,0.10447375,112970.0,112950.0,0.00306]
[1755822152945,0.10447375,112970.0,112960.0,0.00201]
[1755822153153,0.27171141,112970.0,112960.0,0.00201]
[1755822153367,0.27171141,112970.0,112960.0,0.00507]
[1755822153576,0.26973141,112970.0,112960.0,0.031701]
[1755822154018,0.27173141,112970.0,112960.0,0.031701]
[1755822154244,0.27073141,112970.0,112960.0,0.031701]
[1755822154466,0.11933141,112970.0,112960.0,0.031701]
[1755822154678,0.27269141,112970.0,112960.0,0.031701]
[1755822155477,0.27169141,112970.0,112960.0,0.031701]
[1755822155869,0.27269141,112970.0,112960.0,0.031701]
[1755822156866,0.27467141,112970.0,112960.0,0.031701]
[1755822157479,0.27467141,112970.0,112960.0,0.026631]
[1755822157693,0.27676141,112970.0,112960.0,0.026631]
[1755822158521,5.06441741,112970.0,112960.0,0.026631]
[1755822159862,4.91096741,112970.0,112960.0,0.026631]
[1755822160064,0.27479141,112970.0,112960.0,0.031701]
[1755822161048,0.27281141,112970.0,112960.0,0.031701]
[1755822161230,0.27277141,112970.0,112960.0,0.031701]
[1755822161437,0.76089375,112970.0,112960.0,0.031701]
[1755822162446,0.76089375,112970.0,112960.0,0.026631]
[1755822162662,0.76298375,112970.0,112960.0,0.026631]
[1755822162873,0.78787308,112970.0,112960.0,0.026631]
[1755822163098,0.80173154,112970.0,112960.0,0.026631]
[1755822163313,0.80795454,112970.0,112960.0,0.026631]
[1755822165058,0.80795454,112970.0,112940.0,0.00320491]
[1755822165472,0.80795454,112970.0,112950.0,0.026632]
[1755822166080,0.80586454,112970.0,112950.0,0.029692]
[1755822166280,0.82198718,112970.0,112950.0,0.029692]
[1755822166684,0.82398718,112970.0,112950.0,0.029692]
[1755822166913,0.82498718,112970.0,112950.0,0.029692]
[1755822167118,0.80586454,112970.0,112950.0,0.029692]
[1755822167430,0.82399054,112970.0,112950.0,0.029692]
[1755822167628,0.82499054,112970.0,112950.0,0.029692]
[1755822167835,0.82499054,112970.0,112950.0,0.00306]
[1755822168594,0.82499054,112970.0,112960.0,0.026632]
[1755822168724,0.80010507,112970.0,112960.0,0.026632]
[1755822168936,0.82710251,112970.0,112940.0,0.00319491]
[1755822169152,0.82710251,112970.0,112950.0,0.026632]
[1755822169533,0.8261033,112970.0,112950.0,0.026632]
[1755822169894,0.8251033,112970.0,112950.0,0.026632]
[1755822170088,0.8271033,112970.0,112950.0,0.026632]
[1755822170306,0.8261033,112970.0,112950.0,0.026632]
[1755822170500,0.8241033,112970.0,112950.0,0.026632]
[1755822170728,0.8271033,112970.0,112950.0,0.026632]
[1755822171457,0.3271033,112970.0,112950.0,0.026632]
[1755822172816,0.3271033,112970.0,112950.0,0.029682]
[1755822173651,0.5,112960.0,112950.0,0.029682]
[1755822173857,0.5,112960.0,112950.0,0.026632]
[1755822174075,0.5,112960.0,112950.0,0.028782]
[1755822174512,0.5,112960.0,112950.0,0.031832]
[1755822174925,0.501,112960.0,112950.0,0.031832]
[1755822175551,0.6524,112960.0,112950.0,0.031832]
[1755822175989,0.6524,112960.0,112950.0,0.06902969]
[1755822176892,0.1524,112960.0,112950.0,0.07124305]
[1755822177116,0.1524,112960.0,112950.0,0.06902969]
[1755822177749,0.001,112960.0,112950.0,0.06902969]
[1755822181031,0.001,112960.0,112950.0,0.07124305]
[1755822181241,0.001,112960.0,112950.0,0.07345641]
[1755822181455,0.001,112960.0,112950.0,0.07124305]
[1755822183981,0.001,112960.0,112950.0,0.03404536]
[1755822185523,0.001,112960.0,112950.0,0.30074536]
[1755822185731,0.001,112960.0,112950.0,0.298532]
[1755822194454,0.01485774,112960.0,112950.0,0.298532]
[1755822195561,0.01485774,112960.0,112950.0,0.65598102]
[1755822195792,0.01485774,112960.0,112950.0,0.74285067]
[1755822201546,0.001,112960.0,112950.0,0.74285067]
[1755822204821,0.0148568,112960.0,112950.0,0.74285067]
[1755822207180,0.0138568,112960.0,112950.0,0.74285067]
[1755822207357,0.0138568,112960.0,112950.0,0.74485067]
[1755822207577,0.0138568,112960.0,112950.0,0.74685067]
[1755822209038,0.03635375,112970.0,112960.0,0.34]
[1755822209255,0.15092,112980.0,112960.0,0.58274265]
[1755822209664,0.15092,112980.0,112960.0,0.60936865]
[1755822210781,0.18709301,112980.0,112970.0,0.00305]
[1755822210999,0.18907301,112980.0,112970.0,0.00739297]
[1755822211230,0.03915301,112980.0,112970.0,0.031805]
[1755822212092,0.03815301,112980.0,112970.0,0.031805]
[1755822212318,0.05300895,112980.0,112970.0,0.031805]
[1755822215115,0.05300895,112980.0,112970.0,0.298505]
[1755822215339,0.05102895,112980.0,112970.0,0.3774248]
[1755822215803,0.05102895,112980.0,112970.0,0.7174248]
[1755822217044,0.05102895,112980.0,112970.0,0.638505]
[1755822217464,0.05102895,112980.0,112970.0,0.65595402]
[1755822221984,0.03717301,112980.0,112970.0,0.65595402]
[1755822225354,0.05102782,112980.0,112970.0,0.65595402]
[1755822229254,0.03712001,112980.0,112970.0,0.65595402]
[1755822229872,0.03712001,112980.0,112970.0,0.73661342]
[1755822232595,0.05097482,112980.0,112970.0,0.73661342]
[1755822235473,0.05295482,112980.0,112970.0,0.73661342]
[1755822236092,0.05097482,112980.0,112970.0,0.73661342]
[1755822237169,0.04862923,112980.0,112970.0,0.73661342]
[1755822239166,0.04862923,112980.0,112970.0,0.88717342]
[1755822241758,0.04862923,112980.0,112970.0,0.62047342]
[1755822243493,0.04862923,112980.0,112970.0,0.53981402]
[1755822264337,0.04762923,112980.0,112970.0,0.53981402]
[1755822264668,0.04762923,112980.0,112970.0,0.54081402]
[1755822266030,0.04762923,112980.0,112970.0,0.54181402]
[1755822280200,0.00209,113000.0,112970.0,0.54181402]
[1755822280419,0.06812,113010.0,112980.0,0.00735556]
[1755822280420,0.59769432,113010.0,112980.0,0.00735556]
[1755822280617,0.62056977,113010.0,112980.0,0.00442556]
[1755822280822,0.12056977,113010.0,112990.0,0.02955]
[1755822281028,0.00198,113000.0,112990.0,0.02955]
[1755822281301,0.00198,113000.0,112990.0,0.00293]
[1755822281414,0.01029849,113000.0,112990.0,0.029551]
[1755822281638,0.01029849,113000.0,112990.0,0.02969591]
[1755822282066,0.01129849,113000.0,112990.0,0.02969591]
[1755822282277,0.04363314,113000.0,112990.0,0.02969591]
[1755822282733,0.04263314,113000.0,112990.0,0.02969591]
[1755822282968,0.04263314,113000.0,112990.0,0.06710806]
[1755822282969,0.03431465,113000.0,112990.0,0.06710806]
[1755822283315,0.03531465,113000.0,112990.0,0.06710806]
[1755822283735,0.03740465,113000.0,112990.0,0.02676591]
[1755822283938,0.70997397,113000.0,112990.0,0.02676591]
[1755822284167,4.79859797,113000.0,112990.0,0.02676591]
[1755822284347,0.20997397,113000.0,112990.0,0.02676591]
[1755822284569,0.22660565,113000.0,112990.0,0.02676591]
[1755822285314,0.22660573,113000.0,112990.0,0.02676591]
[1755822288383,0.20165821,113000.0,112990.0,0.02676591]
[1755822288593,0.20997357,113000.0,112990.0,0.02676591]
[1755822289021,0.20997352,113000.0,112990.0,0.02676591]
[1755822291867,0.06812,113010.0,112990.0,0.02676591]
[1755822292092,4.588624,113000.0,112990.0,0.02676591]
[1755822292325,4.60247816,113000.0,112990.0,0.00014491]
[1755822292546,0.01385416,113000.0,112990.0,0.02676891]
[1755822293030,0.18153447,113000.0,112990.0,0.02676891]
[1755822293237,0.15036,113000.0,112990.0,0.02676891]
[1755822294768,0.15136,113000.0,112990.0,0.02676891]
[1755822294979,0.20371678,113000.0,112990.0,0.02676891]
[1755822295198,0.20995346,113000.0,112990.0,0.02676891]
[1755822295415,4.79857746,113000.0,112990.0,0.02676891]
[1755822296714,4.81243232,113000.0,112990.0,0.02676891]
[1755822297651,4.82534571,113000.0,112990.0,0.00014491]
[1755822297858,4.83158067,113000.0,112990.0,0.00014491]
[1755822298518,4.83158067,113000.0,112980.0,0.026626]
[1755822298653,4.588624,112990.0,112980.0,0.02675417]
[1755822300391,4.656744,112990.0,112980.0,0.02675417]
[1755822300616,0.06812,112990.0,112980.0,0.02775417]
[1755822301411,0.06812,112990.0,112980.0,0.02875417]
[1755822302328,0.06812,112990.0,112980.0,0.03198417]
[1755822302540,0.06812,112990.0,112980.0,0.03403417]
[1755822302756,0.21844,112990.0,112980.0,0.03403417]
[1755822305332,0.23229545,112990.0,112980.0,0.03403417]
[1755822305553,0.23229545,112990.0,112980.0,0.03198417]
[1755822306224,0.23229545,112990.0,112980.0,0.02875417]
[1755822308956,0.23229545,112990.0,112980.0,0.00535817]
[1755822309131,0.21844,112990.0,112980.0,0.00535817]
[1755822312087,0.71844,112990.0,112980.0,0.00535817]
[1755822312326,0.73229567,112990.0,112980.0,0.00535817]
[1755822315514,0.73229567,112990.0,112980.0,0.00212817]
[1755822316269,0.76344797,112990.0,112980.0,0.00212817]
[1755822316487,0.75721748,112990.0,112980.0,0.00212817]
[1755822318506,0.75721662,112990.0,112980.0,0.00212817]
[1755822318919,5.37121029,112990.0,112960.0,0.2697]
[1755822319144,4.588624,112980.0,112960.0,0.296328]
[1755822319311,0.15028,112970.0,112960.0,0.029628]
[1755822319506,0.15028,112970.0,112960.0,0.028768]
[1755822319935,0.16413711,112970.0,112960.0,0.028768]
[1755822320158,0.16413711,112970.0,112960.0,0.029628]
[1755822320369,0.16413711,112970.0,112960.0,0.003]
[1755822320662,0.15028,112970.0,112960.0,0.003]
[1755822321269,0.65028,112970.0,112960.0,0.003]
[1755822321679,0.65028,112970.0,112960.0,0.00514]
[1755822321873,0.65028,112970.0,112960.0,0.00714]
[1755822322079,0.65028,112970.0,112960.0,0.00814]
[1755822324089,0.66413767,112970.0,112960.0,0.00814]
[1755822324478,0.66413767,112970.0,112960.0,0.006]
[1755822325118,0.66413767,112970.0,112960.0,0.003]
[1755822325978,0.66413767,112970.0,112960.0,0.005]
[1755822326414,0.66413767,112970.0,112960.0,0.003]
[1755822327241,0.65028,112970.0,112960.0,0.003]
[1755822328332,0.65028,112970.0,112950.0,0.003]
[1755822328515,0.65032828,112970.0,112960.0,0.003]
[1755822329629,0.65032828,112970.0,112950.0,0.003]
[1755822329838,0.15032828,112970.0,112950.0,0.003]
[1755822331736,4.588624,112960.0,112950.0,0.003]
[1755822331913,5.088624,112960.0,112950.0,0.003]
[1755822332108,0.5,112960.0,112950.0,0.003]
[1755822332565,0.5,112960.0,112950.0,0.00514]
[1755822333127,0.5,112960.0,112950.0,0.00714]
[1755822334509,0.5,112960.0,112950.0,0.00814]
[1755822337289,0.5138589,112960.0,112950.0,0.00814]
[1755822339050,0.5,112960.0,112950.0,0.00814]
[1755822340458,0.51385872,112960.0,112950.0,0.00814]
[1755822341285,0.66405872,112960.0,112950.0,0.00814]
[1755822341949,0.66405872,112960.0,112950.0,0.01035336]
[1755822342822,0.66405872,112960.0,112950.0,0.03698436]
[1755822343029,0.6502,112960.0,112950.0,0.03698436]
[1755822343236,0.66405837,112960.0,112950.0,0.03698436]
[1755822343452,0.66405837,112960.0,112950.0,0.0673528]
[1755822343657,0.16405837,112960.0,112950.0,0.0673528]
[1755822344092,0.01385837,112960.0,112950.0,0.03698436]
[1755822345209,0.01385837,112960.0,112950.0,0.32334674]
[1755822345446,0.01385837,112960.0,112950.0,0.31892002]
[1755822347376,0.01385837,112960.0,112950.0,0.46912002]
[1755822349088,4.828e-05,112970.0,112950.0,0.46912002]
[1755822349269,4.828e-05,112970.0,112950.0,0.51303202]
[1755822349478,4.828e-05,112970.0,112960.0,0.003]
[1755822349685,4.828e-05,112970.0,112960.0,0.031647]
[1755822350543,0.01390524,112970.0,112960.0,0.031647]
[1755822351148,0.01390524,112970.0,112960.0,0.298347]
[1755822354023,0.01390524,112970.0,112960.0,0.3496378]
[1755822355183,0.01390524,112970.0,112960.0,0.298347]
[1755822374908,0.15008,112980.0,112960.0,0.298347]
[1755822375114,0.01385714,112970.0,112960.0,0.295347]
[1755822375315,0.01385714,112970.0,112960.0,0.26872]
[1755822375527,0.01385714,112970.0,112960.0,0.295348]
[1755822375730,0.01385714,112970.0,112960.0,0.298348]
[1755822378866,0.01385714,112970.0,112960.0,0.296328]
[1755822379043,0.51385714,112970.0,112960.0,0.293328]
[1755822379305,4.92430914,112970.0,112960.0,0.293328]
[1755822379516,0.01385714,112970.0,112960.0,0.293328]
[1755822379727,0.51385714,112970.0,112960.0,0.296508]
[1755822379934,4.92430914,112970.0,112960.0,0.296508]
[1755822380140,0.01385714,112970.0,112960.0,0.296508]
[1755822380352,0.51385714,112970.0,112960.0,0.296508]
[1755822380566,4.92430914,112970.0,112960.0,0.296508]
[1755822380762,0.01385714,112970.0,112960.0,0.029808]
[1755822380969,0.51385714,112970.0,112960.0,0.029808]
[1755822381193,4.92430914,112970.0,112960.0,0.029808]
[1755822381410,0.01385714,112970.0,112960.0,0.029808]
[1755822381639,0.51385714,112970.0,112960.0,0.031808]
[1755822381858,4.57434914,112970.0,112960.0,0.031808]
[1755822382102,0.16389714,112970.0,112960.0,0.031808]
[1755822387991,0.16389714,112970.0,112960.0,0.029808]
[1755822389224,0.16389714,112970.0,112960.0,0.031808]
[1755822389906,0.16389714,112970.0,112960.0,0.029808]
[1755822391553,0.16389714,112970.0,112960.0,0.031808]
[1755822392298,0.16389714,112970.0,112960.0,0.029808]
[1755822393391,0.16389714,112970.0,112960.0,0.031808]
[1755822397249,0.16389714,112970.0,112960.0,0.0616588]
[1755822400324,0.16389714,112970.0,112960.0,0.031808]
[1755822403145,0.16389714,112970.0,112960.0,0.029808]
[1755822408710,0.16389714,112970.0,112960.0,0.031918]
[1755822409340,0.06812,112990.0,112960.0,0.031918]
[1755822409581,4.185597,112980.0,112960.0,0.031918]
[1755822409793,0.01385775,112970.0,112960.0,0.00529]
[1755822410001,0.06816831,112990.0,112970.0,0.029829]
[1755822410208,4.185597,112980.0,112970.0,0.029829]
[1755822410414,4.21678696,112980.0,112970.0,0.026629]
[1755822410620,4.36670696,112980.0,112970.0,0.026629]
[1755822412406,4.36770696,112980.0,112970.0,0.026629]
[1755822412610,4.36870696,112980.0,112970.0,0.026629]
[1755822414015,4.36871047,112980.0,112970.0,0.029829]
[1755822414685,4.38256774,112980.0,112970.0,0.029829]
[1755822415754,4.38256774,112980.0,112970.0,0.026629]
[1755822417319,4.3825704,112980.0,112970.0,0.026629]
[1755822417780,4.38257019,112980.0,112970.0,0.026629]
[1755822418195,4.38257019,112980.0,112960.0,0.0032]
[1755822418418,4.185597,112970.0,112960.0,0.029829]
[1755822418995,4.185597,112970.0,112960.0,0.026629]
[1755822419391,4.185597,112970.0,112960.0,0.029829]
[1755822420024,4.185597,112970.0,112960.0,0.026629]
[1755822420843,4.185597,112970.0,112960.0,0.029829]
[1755822421069,4.185597,112970.0,112960.0,0.026629]
[1755822421264,4.20223642,112970.0,112960.0,0.026629]
[1755822421472,0.01663942,112970.0,112960.0,0.026629]
[1755822421750,0.51663942,112970.0,112960.0,0.026629]